bitfinex-derivatives/quotes_ETHF0:USTF0_20241020
["timestamp","ask_amount","ask_price","bid_price","bid_amount"]
[1729384543244,0.37794,2646.0,2645.9,1.8359802]
[1729384543439,0.87908129,2646.0,2645.9,1.8359802]
[1729384545450,0.87908129,2646.0,2645.9,1.83601427]
[1729384548038,0.87908129,2646.0,2645.9,1.8360472]
[1729384549744,0.87908129,2646.0,2645.9,0.4048]
[1729384550142,0.37794,2646.0,2645.9,0.4048]
[1729384550946,0.37796,2645.9,2645.8,0.4269]
[1729384556749,0.37796,2645.9,2645.8,1.85816386]
[1729384557457,3.6288,2646.1,2645.8,1.85816386]
[1729384557657,4.36673,2646.1,2645.9,2.22431386]
[1729384557853,4.36673,2646.1,2645.9,0.79305]
[1729384558059,3.9888,2646.1,2645.9,0.79305]
[1729384558363,0.37794,2646.0,2645.9,0.4151]
[1729384558665,0.37794,2646.0,2645.9,1.84635931]
[1729384558966,0.37794,2646.0,2645.9,2.22431931]
[1729384559462,0.37794,2646.0,2645.9,1.84635931]
[1729384559963,0.37796,2645.9,2645.8,0.4269]
[1729384560165,0.37796,2645.9,2645.8,1.85820415]
[1729384562456,0.77726,2645.9,2645.8,1.85820415]
[1729384564066,4.55646,2645.9,2645.8,1.43130415]
[1729384564263,0.37799,2645.7,2645.5,2.35945156]
[1729384564462,0.37799,2645.7,2645.6,1.43632812]
[1729384564863,0.37799,2645.7,2645.5,0.37801]
[1729384565259,0.378,2645.6,2645.5,0.37801]
[1729384565856,0.378,2645.7,2645.5,0.37801]
[1729384566661,0.90029798,2645.9,2645.4,0.7951]
[1729384566662,0.37801,2645.5,2645.4,0.7951]
[1729384567365,0.37807,2645.2,2645.0,3.2078]
[1729384567561,0.37808,2645.1,2644.9,1.5756]
[1729384567866,0.37806,2645.2,2644.9,1.5756]
[1729384568269,0.91369798,2645.4,2644.9,1.5756]
[1729384568469,0.37808,2645.1,2644.9,1.1975]
[1729384568665,0.777,2645.1,2644.9,1.57559]
[1729384568972,1.15508,2645.1,2644.9,1.1975]
[1729384569357,1.15508,2645.1,2644.9,1.5756]
[1729384569865,1.27799798,2645.1,2644.9,1.5756]
[1729384570060,0.777,2645.1,2644.9,1.5756]
[1729384570666,0.777,2645.1,2644.9,1.1975]
[1729384570865,0.777,2645.1,2644.9,1.57559]
[1729384571974,0.777,2645.1,2644.9,0.76669]
[1729384572274,1.1686,2645.1,2644.9,0.76669]
[1729384572471,1.1686,2645.1,2645.0,0.37809]
[1729384573266,0.39893,2645.1,2644.9,0.3886]
[1729384573460,0.399,2645.6,2645.0,4.0116]
[1729384573664,0.399,2645.6,2645.5,0.37801]
[1729384574273,0.399,2645.6,2645.0,5.99304156]
[1729384574274,3.2078,2645.7,2645.6,0.378]
[1729384575670,3.2078,2645.7,2645.6,1.81087652]
[1729384575876,3.2078,2645.7,2645.6,0.378]
[1729384576475,3.2078,2645.7,2645.6,1.81105082]
[1729384577778,3.2078,2646.2,2645.6,8.42119343]
[1729384577977,0.39908,2646.1,2645.7,1.43339343]
[1729384578172,0.777,2646.1,2645.8,1.82529343]
[1729384578379,0.777,2646.1,2646.0,0.37794]
[1729384578981,0.777,2646.1,2645.8,0.3919]
[1729384579180,0.777,2646.1,2645.9,1.81136629]
[1729384579375,0.777,2646.1,2645.8,0.3919]
[1729384579578,0.777,2646.1,2646.0,0.37794]
[1729384579772,0.777,2646.1,2645.9,0.37796]
[1729384581179,1.15493,2646.1,2645.9,0.37796]
[1729384581574,0.777,2646.1,2645.9,0.37796]
[1729384582672,3.9848,2646.1,2645.9,0.37796]
[1729384582978,0.50003093,2646.0,2645.9,0.37796]
[1729384586673,0.50003093,2646.0,2645.9,0.22188227]
[1729384587075,4.36273,2646.1,2645.9,0.22188227]
[1729384587571,4.36273,2646.1,2645.8,0.3919]
[1729384587775,4.36273,2646.1,2645.8,0.76986]
[1729384587978,0.4103,2646.0,2645.8,0.76986]
[1729384588779,0.78824,2646.0,2645.8,0.76986]
[1729384588977,0.8315,2646.0,2645.8,0.76986]
[1729384590578,1.20944,2646.0,2645.8,0.76986]
[1729384590886,0.8315,2646.0,2645.8,0.76986]
[1729384591176,0.8315,2646.0,2645.8,0.3919]
[1729384591384,0.8315,2646.0,2645.5,2.33120841]
[1729384591385,0.37796,2645.9,2645.6,0.37799]
[1729384591578,0.37799,2645.7,2645.6,0.4054]
[1729384592289,3.2078,2645.8,2645.2,2.27120841]
[1729384592478,3.2078,2645.8,2645.3,0.78343]
[1729384592679,0.37801,2645.5,2645.3,0.78343]
[1729384593087,0.37803,2645.5,2645.3,0.4054]
[1729384593293,0.398,2645.4,2645.3,0.4054]
[1729384593479,0.398,2645.4,2645.3,0.78344]
[1729384593977,0.398,2645.4,2645.3,0.4054]
[1729384594380,0.77603,2645.4,2645.3,0.4054]
[1729384595182,0.398,2645.4,2645.3,0.4054]
[1729384595384,0.77603,2645.4,2645.3,0.4054]
[1729384597385,0.398,2645.4,2645.0,0.43]
[1729384597676,0.37806,2645.2,2645.0,1.23248]
[1729384597890,0.80065,2645.3,2645.1,0.37807]
[1729384598283,0.37806,2645.2,2645.0,1.23248]
[1729384599187,0.37806,2645.2,2645.0,0.8544]
[1729384599489,0.37806,2645.2,2645.0,1.23249]
[1729384600985,0.37807,2645.1,2645.0,0.4244]
[1729384601385,3.6304,2645.3,2645.0,0.4244]
[1729384601584,0.37806,2645.2,2645.0,0.80248]
[1729384603390,0.37806,2645.2,2645.0,0.4244]
[1729384603894,0.37806,2645.2,2645.0,0.80248]
[1729384604993,0.4226,2645.3,2645.0,0.4244]
[1729384605291,0.37807,2645.2,2645.0,0.4244]
[1729384605697,0.37807,2645.2,2645.0,0.80248]
[1729384609988,0.80065,2645.3,2645.1,0.37806]
[1729384610192,1.57665,2645.3,2645.1,0.37806]
[1729384613199,1.1986,2645.3,2645.1,0.37806]
[1729384613406,1.57665,2645.3,2645.1,0.37806]
[1729384614996,0.37806,2645.2,2645.1,0.37806]
[1729384615197,1.57665,2645.3,2645.1,0.37806]
[1729384616496,1.57665,2645.3,2645.0,1.48390841]
[1729384616497,1.1986,2645.3,2645.0,1.48390841]
[1729384616701,0.37806,2645.2,2645.0,1.48390841]
[1729384616903,0.37806,2645.2,2645.0,1.86198841]
[1729384617105,0.37806,2645.2,2645.0,0.37808]
[1729384617705,1.1986,2645.3,2644.9,1.88750841]
[1729384617899,1.57664,2645.3,2645.0,1.43364839]
[1729384618101,1.57664,2645.3,2645.1,1.17547]
[1729384618504,1.57664,2645.3,2645.2,0.3951]
[1729384618699,0.80064,2645.3,2645.2,0.3951]
[1729384618909,1.57664,2645.3,2645.2,0.3951]
[1729384622404,1.1986,2645.3,2644.9,1.48390841]
[1729384622607,0.37808,2645.1,2644.9,0.78009]
[1729384624005,4.01497,2645.2,2645.0,0.37809]
[1729384624203,0.776,2645.1,2644.9,0.402]
[1729384624406,0.776,2645.1,2645.0,0.37809]
[1729384624609,0.776,2645.2,2644.9,0.402]
[1729384624808,1.15406,2645.2,2645.0,0.37808]
[1729384626108,1.15406,2645.2,2645.0,0.37807]
[1729384628403,0.37808,2645.1,2644.9,0.78009]
[1729384628712,0.37807,2645.1,2644.9,0.78009]
[1729384629315,0.776,2645.2,2644.9,0.78009]
[1729384629511,0.37809,2645.0,2644.9,0.78009]
[1729384630506,0.37808,2645.1,2644.9,0.78009]
[1729384630701,0.776,2645.2,2645.0,0.37808]
[1729384630901,0.776,2645.1,2644.9,0.78009]
[1729384631106,1.15408,2645.1,2645.0,0.37809]
[1729384631503,1.15408,2645.1,2644.9,0.78009]
[1729384631713,1.15407,2645.1,2645.0,0.37808]
[1729384632014,0.37809,2645.0,2644.9,0.78009]
[1729384632207,0.776,2645.1,2644.9,3.69974792]
[1729384632522,1.15408,2645.1,2645.0,2.91965792]
[1729384632908,1.15408,2645.1,2645.0,1.43574951]
[1729384633418,1.15408,2645.1,2645.0,2.91965792]
[1729384633914,0.776,2645.1,2645.0,2.91965792]
[1729384634109,0.776,2645.1,2645.0,3.29774792]
[1729384634505,1.15407,2645.1,2645.0,3.29774792]
[1729384634710,0.50077525,2645.2,2645.1,0.37807]
[1729384634915,1.65482525,2645.3,2645.1,4.12939415]
[1729384635113,1.27677525,2645.3,2645.2,1.81380951]
[1729384635308,1.65481525,2645.3,2645.2,2.92282415]
[1729384635511,1.65481525,2645.3,2645.2,3.33012415]
[1729384635710,1.65481525,2645.3,2645.2,1.84304951]
[1729384636307,1.65481525,2645.3,2645.2,1.43574951]
[1729384636507,1.65481525,2645.3,2644.9,0.72353915]
[1729384636508,1.67267525,2645.3,2644.9,0.72353915]
[1729384636819,0.37811,2644.8,2644.7,1.98144156]
[1729384637010,0.37811,2644.8,2644.7,3.41922493]
[1729384637623,0.37811,2644.8,2644.7,6.28886909]
[1729384638621,0.37811,2644.8,2644.7,3.41922493]
[1729384638827,0.37811,2644.8,2644.7,1.43778337]
[1729384639319,1.60633816,2645.0,2644.6,0.4126]
[1729384639320,0.37813,2644.7,2644.6,0.4126]
[1729384640823,0.37812,2644.8,2644.6,0.79074]
[1729384641414,1.10556291,2645.0,2644.6,0.4126]
[1729384641618,0.37812,2644.8,2644.6,0.4126]
[1729384642221,1.10556291,2645.0,2644.6,0.4126]
[1729384642521,0.37812,2644.8,2644.6,0.4126]
[1729384642826,0.37812,2644.8,2644.6,0.79074]
[1729384643021,0.37812,2644.8,2644.6,0.4126]
[1729384643324,0.37813,2644.7,2644.6,0.4126]
[1729384643529,0.37813,2644.8,2644.6,0.79074]
[1729384643827,0.3781,2644.9,2644.6,0.4126]
[1729384644127,0.37813,2644.7,2644.6,0.4126]
[1729384645436,4.31336291,2645.0,2644.6,0.4126]
[1729384645632,0.37817,2644.5,2644.0,5.18924156]
[1729384645840,0.37818,2644.4,2644.1,1.63471]
[1729384646233,0.37819,2644.3,2644.1,1.63471]
[1729384646637,0.37817,2644.4,2644.2,0.37819]
[1729384646941,0.37816,2644.5,2644.2,0.37819]
[1729384647441,0.37818,2644.4,2644.3,1.43327341]
[1729384649233,0.37818,2644.4,2644.3,1.43271808]
[1729384649648,0.37817,2644.5,2644.3,1.43271808]
[1729384649835,0.37817,2644.5,2644.4,0.99075713]
[1729384652442,2.23567015,2644.6,2644.3,0.99075713]
[1729384652745,0.37817,2644.4,2644.3,0.99075713]
[1729384653234,3.7816,2644.4,2644.0,0.99075713]
[1729384653430,6.38884015,2644.6,2643.7,2.81924156]
[1729384653431,0.37823,2644.0,2643.9,1.38125713]
[1729384653643,1.15623,2644.0,2643.9,1.38125713]
[1729384654043,1.15623,2644.0,2643.9,0.3905]
[1729384654931,3.2078,2644.1,2643.9,0.3905]
[1729384655136,0.778,2644.0,2643.9,0.3905]
[1729384655943,3.58602,2644.1,2643.9,0.3905]
[1729384656143,0.778,2644.0,2643.9,0.3905]
[1729384656733,0.778,2644.0,2643.9,0.76874]
[1729384657042,0.779,2644.0,2643.9,0.76874]
[1729384657237,0.779,2644.0,2643.9,0.3905]
[1729384657638,0.779,2644.0,2643.9,0.76874]
[1729384658346,0.779,2644.0,2643.9,0.3905]
[1729384658957,0.779,2644.0,2643.9,0.76874]
[1729384659648,0.779,2644.0,2643.9,0.3905]
[1729384659844,3.2078,2644.1,2643.9,0.3905]
[1729384660145,0.779,2644.0,2643.9,0.76874]
[1729384660348,0.779,2644.0,2643.9,0.3905]
[1729384660947,0.779,2644.0,2643.9,0.76874]
[1729384661347,0.779,2644.0,2643.9,0.3905]
[1729384661945,3.58602,2644.1,2643.9,0.3905]
[1729384662252,0.779,2644.0,2643.9,0.3905]
[1729384662545,0.21117124,2644.0,2643.9,0.3905]
[1729384662753,0.21117124,2644.0,2643.9,0.76874]
[1729384663153,0.21117124,2644.0,2643.9,0.3905]
[1729384663652,0.21117124,2644.0,2643.9,0.76874]
[1729384664049,0.37821,2644.1,2643.9,0.3905]
[1729384664244,0.779,2644.1,2643.9,0.76873]
[1729384664552,0.779,2644.1,2643.8,0.99075713]
[1729384664753,0.779,2644.1,2643.9,0.37823]
[1729384665049,3.9868,2644.2,2644.0,0.37822]
[1729384665254,3.9868,2644.2,2644.1,0.3969]
[1729384665255,1.1572,2644.2,2644.1,0.3969]
[1729384665754,0.779,2644.2,2644.1,0.3969]
[1729384665944,0.779,2644.2,2644.1,0.77511]
[1729384666853,0.779,2644.2,2644.1,0.3969]
[1729384668051,1.1572,2644.2,2644.1,0.3969]
[1729384669049,0.779,2644.2,2644.1,0.3969]
[1729384669255,1.1572,2644.2,2644.1,0.3969]
[1729384669651,0.779,2644.2,2644.1,0.3969]
[1729384669848,1.17829,2644.3,2644.1,0.3969]
[1729384670160,3.9868,2644.5,2644.4,0.37817]
[1729384670345,3.2078,2644.5,2644.4,0.37817]
[1729384670955,3.2078,2644.5,2644.4,4.15977]
[1729384671356,0.779,2645.1,2644.4,6.9894]
[1729384671655,0.8227,2645.2,2644.5,0.4253]
[1729384671862,1.6017,2645.2,2644.9,0.37809]
[1729384672054,0.8227,2645.2,2645.0,0.4111]
[1729384672247,0.37807,2645.1,2645.0,0.4111]
[1729384672859,1.6017,2645.2,2645.0,0.4111]
[1729384673156,1.97977,2645.2,2645.0,0.4111]
[1729384673357,1.6017,2645.2,2645.0,0.4111]
[1729384673549,0.8227,2645.2,2645.0,0.4111]
[1729384673756,0.37807,2645.1,2645.0,0.4111]
[1729384674451,1.6017,2645.2,2644.7,0.80252]
[1729384674452,0.37809,2645.0,2644.7,0.80252]
[1729384674661,1.6017,2645.2,2644.5,0.99075713]
[1729384674662,0.37812,2644.8,2644.6,0.3966]
[1729384674855,0.37812,2644.8,2644.6,0.8077]
[1729384675656,0.37812,2644.8,2644.6,0.4111]
[1729384676161,0.37811,2644.8,2644.6,0.78924]
[1729384676361,0.37811,2644.8,2644.6,0.4111]
[1729384676960,0.779,2644.9,2644.6,0.4111]
[1729384677161,0.37812,2644.8,2644.6,0.4111]
[1729384677463,0.37812,2644.8,2644.6,0.78924]
[1729384678069,1.1707,2644.9,2644.6,0.78924]
[1729384678262,1.54881,2644.9,2644.7,0.37812]
[1729384678566,0.49987852,2644.8,2644.7,0.37812]
[1729384678764,0.87799852,2644.8,2644.6,0.78924]
[1729384679263,0.87799852,2644.8,2644.7,0.37813]
[1729384679264,0.49987852,2644.8,2644.7,0.37813]
[1729384679462,1.1707,2644.9,2644.6,0.4111]
[1729384679463,0.778,2644.9,2644.6,0.4111]
[1729384679769,0.778,2644.9,2644.8,0.37811]
[1729384679963,0.778,2644.9,2644.8,0.22103296]
[1729384680463,1.1561,2644.9,2644.7,0.37812]
[1729384680859,1.15611,2644.9,2644.7,0.37812]
[1729384681364,1.27787852,2645.0,2644.8,0.3781]
[1729384681559,1.65596852,2645.0,2644.8,0.3781]
[1729384682779,1.65596852,2645.0,2644.9,0.3781]
[1729384682780,1.27787852,2645.0,2644.9,0.3781]
[1729384682957,1.65596852,2645.0,2644.8,0.3781]
[1729384683762,1.27787852,2645.0,2644.9,0.3781]
[1729384683971,0.49987852,2645.0,2644.6,0.4111]
[1729384684164,0.49987852,2645.0,2644.9,0.3781]
[1729384685072,3.2078,2645.1,2645.0,0.37809]
[1729384685663,3.2078,2645.1,2644.6,0.4111]
[1729384685864,0.37809,2645.0,2644.8,0.37811]
[1729384686256,4.032,2645.1,2644.6,0.4111]
[1729384686660,0.37809,2645.0,2644.8,0.37811]
[1729384687363,0.8242,2645.1,2644.6,0.4111]
[1729384687571,0.37813,2644.7,2644.6,0.4111]
[1729384688773,0.8242,2645.1,2644.6,0.4111]
[1729384688971,0.37812,2644.8,2644.6,0.78924]
[1729384689162,0.37812,2644.8,2644.6,0.4111]
[1729384689470,0.37812,2644.8,2644.6,0.78924]
[1729384697473,0.37812,2644.8,2644.6,0.78923]
[1729384697970,0.37811,2644.9,2644.7,0.37812]
[1729384698178,1.16611,2644.9,2644.7,0.78082]
[1729384699271,0.37811,2644.8,2644.7,0.4027]
[1729384701279,1.16611,2644.9,2644.7,0.78082]
[1729384701678,1.16611,2644.9,2644.7,0.4027]
[1729384702078,0.37811,2644.8,2644.7,0.4027]
[1729384703585,1.16611,2644.9,2644.7,0.78082]
[1729384703776,0.37811,2644.8,2644.7,0.4027]
[1729384704983,0.788,2644.9,2644.7,0.4027]
[1729384705190,1.16611,2644.9,2644.7,0.78083]
[1729384705573,1.16611,2644.9,2644.7,0.4027]
[1729384705574,0.37811,2644.8,2644.7,0.4027]
[1729384706980,1.16611,2644.9,2644.7,0.78082]
[1729384707485,0.788,2644.9,2644.7,0.4027]
[1729384707686,1.16611,2644.9,2644.7,0.78082]
[1729384707982,0.788,2644.9,2644.7,0.4027]
[1729384708175,0.37811,2644.8,2644.7,0.4027]
[1729384709380,0.37811,2644.8,2644.7,0.23675871]
[1729384710177,1.16611,2644.9,2644.7,0.61487871]
[1729384710376,0.37811,2644.8,2644.7,0.23675871]
[1729384712278,0.37811,2644.8,2644.7,1.22751584]
[1729384712685,0.37811,2644.8,2644.7,0.23675871]
[1729384719590,0.37813,2644.7,2644.6,0.78923]
[1729384720395,0.37813,2644.7,2644.6,0.4111]
[1729384721201,0.78253,2644.7,2644.6,0.4111]
[1729384722201,0.78253,2644.7,2644.6,6.69176902]
[1729384722696,0.78253,2644.7,2644.6,3.82561738]
[1729384723204,0.90617504,2644.7,2644.6,4.94119555]
[1729384723497,0.4044,2644.7,2644.6,4.94119555]
[1729384723694,0.78253,2644.7,2644.6,0.64196652]
[1729384723906,1.28430504,2644.7,2644.6,4.94112924]
[1729384724211,0.78253,2644.7,2644.6,4.94112924]
[1729384724700,0.50177504,2644.8,2644.7,0.37813]
[1729384724908,0.50177504,2645.0,2644.9,0.3781]
[1729384725094,0.50177504,2645.0,2644.9,1.62458775]
[1729384725297,0.50177504,2645.0,2644.9,11.46426018]
[1729384725506,0.5016087,2645.5,2645.4,0.37803]
[1729384725694,0.5016087,2645.5,2645.4,1.80351924]
[1729384725894,5.04242449,2645.7,2645.4,3.29208234]
[1729384726201,4.4116,2645.7,2645.5,1.77544508]
[1729384726403,4.4116,2645.7,2645.5,0.8067]
[1729384726601,4.78959,2645.7,2645.5,1.18471]
[1729384726799,4.00459,2645.7,2645.5,0.8067]
[1729384727101,4.00459,2645.7,2645.5,1.79903508]
[1729384727406,4.00459,2645.7,2645.5,0.8067]
[1729384728403,0.378,2645.6,2645.5,0.8067]
[1729384728598,0.7824,2645.6,2645.5,0.4016]
[1729384728802,0.37803,2645.4,2645.3,0.99233508]
[1729384728997,0.37803,2645.4,2645.2,0.99233508]
[1729384729197,0.37803,2645.5,2645.2,0.37805]
[1729384729398,0.4044,2645.6,2645.2,0.37805]
[1729384729399,0.37803,2645.4,2645.2,0.37805]
[1729384729600,0.37803,2645.5,2645.2,0.37805]
[1729384730299,0.37803,2645.4,2645.2,0.37805]
[1729384731408,1.1884,2645.6,2645.2,0.37805]
[1729384731609,0.4044,2645.6,2645.1,1.2357]
[1729384731903,3.2078,2645.7,2645.6,0.378]
[1729384732296,3.2078,2645.7,2645.1,4.4435]
[1729384732501,3.2078,2645.7,2645.5,0.378]
[1729384732701,3.2078,2645.7,2645.6,0.8318]
[1729384732908,3.58579,2645.7,2645.6,0.8318]
[1729384733505,0.784,2645.9,2645.6,0.8318]
[1729384733804,4.0151,2646.0,2645.6,0.8318]
[1729384733805,3.2078,2646.0,2645.9,0.37796]
[1729384734302,3.2078,2646.0,2645.9,4.15716]
[1729384734900,3.2078,2646.0,2645.9,0.37796]
[1729384737103,3.2078,2646.1,2645.9,0.37796]
[1729384737814,3.2078,2646.1,2645.8,0.37797]
[1729384738002,3.2078,2646.1,2645.9,0.37795]
[1729384738197,0.37792,2646.2,2645.9,0.37795]
[1729384738506,3.2078,2646.1,2646.0,0.80664]
[1729384738806,3.2078,2646.1,2646.0,0.4287]
[1729384739013,3.2078,2646.1,2645.7,0.4144]
[1729384739318,0.37796,2645.9,2645.7,0.8371]
[1729384739813,3.6095,2646.1,2645.7,0.8371]
[1729384740017,3.6095,2646.1,2645.7,0.4227]
[1729384740018,0.37797,2645.9,2645.7,0.4227]
[1729384740511,0.37797,2645.8,2645.7,0.4227]
[1729384742410,0.378,2645.6,2645.4,11.31202]
[1729384742825,0.378,2645.6,2645.4,0.37802]
[1729384743726,1.2471,2645.7,2645.3,0.8395]
[1729384743911,0.37801,2645.5,2645.3,1.21754]
[1729384744407,0.37803,2645.4,2645.3,0.8395]
[1729384744613,0.37802,2645.5,2645.3,1.21754]
[1729384746311,0.37802,2645.5,2645.3,0.77582448]
[1729384748713,0.37805,2645.3,2645.1,0.37806]
[1729384749320,0.78455,2645.3,2645.1,0.37806]
[1729384749820,0.4065,2645.3,2644.9,0.8409]
[1729384750024,0.4065,2645.3,2645.2,0.37806]
[1729384751619,0.78454,2645.3,2645.1,0.37806]
[1729384751921,0.7841,2645.2,2645.1,0.37806]
[1729384752116,1.26815636,2645.2,2645.1,0.37806]
[1729384753323,0.7841,2645.2,2645.1,0.37806]
[1729384754522,0.7841,2645.2,2644.9,0.8409]
[1729384754523,0.37808,2645.1,2644.9,0.8409]
[1729384754718,0.37808,2645.1,2644.9,1.21899]
[1729384755320,0.37809,2645.0,2644.9,0.8409]
[1729384755519,0.37809,2645.0,2644.9,0.4264]
[1729384755717,0.37809,2645.0,2644.9,0.8045]
[1729384755920,0.37809,2645.0,2644.9,0.4264]
[1729384756522,0.7841,2645.2,2644.7,0.37812]
[1729384756523,0.37811,2644.9,2644.7,0.37812]
[1729384756725,0.4019,2644.9,2644.7,0.37811]
[1729384756927,0.78001,2644.9,2644.7,0.37812]
[1729384757125,0.4019,2644.9,2644.8,0.37811]
[1729384757420,0.78,2644.9,2644.7,0.37812]
[1729384757613,0.4019,2644.9,2644.6,1.2657]
[1729384757813,0.4019,2644.9,2644.8,0.37811]
[1729384759021,0.4019,2644.9,2644.6,1.2657]
[1729384759222,0.4019,2644.9,2644.8,0.37811]
[1729384759427,0.78,2644.9,2644.8,0.37811]
[1729384759824,0.4019,2644.9,2644.8,0.37811]
[1729384760126,3.2078,2645.3,2645.2,0.37806]
[1729384760326,0.37804,2645.4,2645.2,0.37806]
[1729384760825,3.2078,2645.3,2644.8,0.99233508]
[1729384761023,3.2078,2645.3,2645.2,0.37805]
[1729384761221,0.37803,2645.4,2645.2,0.37805]
[1729384762030,1.1811,2645.5,2645.1,0.8137]
[1729384762324,1.1811,2645.5,2645.3,0.37804]
[1729384762325,1.55912,2645.5,2645.3,0.37804]
[1729384762721,1.55912,2645.5,2645.2,0.37805]
[1729384763321,0.37803,2645.4,2645.2,0.37805]
[1729384763720,1.55913,2645.5,2645.2,0.37805]
[1729384764732,1.1811,2645.5,2645.3,0.37804]
[1729384765232,1.55912,2645.5,2645.3,0.37804]
[1729384765435,1.55912,2645.5,2645.1,0.8137]
[1729384765623,1.55912,2645.5,2645.2,0.37805]
[1729384767030,0.37803,2645.4,2645.2,0.37805]
[1729384767327,1.55912,2645.5,2645.2,0.37805]
[1729384767728,0.4168,2645.4,2645.2,0.37805]
[1729384768231,0.90149093,2645.4,2645.2,0.37805]
[1729384768427,0.4168,2645.4,2645.2,0.37805]
[1729384768823,0.79483,2645.4,2645.2,0.37805]
[1729384769029,0.4168,2645.4,2645.2,0.37805]
[1729384769430,0.79483,2645.4,2645.1,1.19176]
[1729384770035,0.4168,2645.4,2645.2,0.37805]
[1729384770425,0.79483,2645.4,2645.1,1.19176]
[1729384771833,0.4168,2645.4,2645.1,1.19176]
[1729384772038,0.37805,2645.3,2645.1,0.8137]
[1729384772226,0.88379093,2645.5,2645.2,3.78]
[1729384772227,0.48469093,2645.5,2645.2,3.78]
[1729384772531,0.48469093,2645.5,2645.4,0.37803]
[1729384772936,0.48469093,2645.5,2645.4,4.15803]
[1729384773239,0.37799,2645.7,2645.4,4.15803]
[1729384773432,0.37799,2645.7,2645.5,0.8071]
[1729384773637,0.86268093,2645.7,2645.5,0.95183407]
[1729384774430,0.378,2645.6,2645.5,0.95183407]
[1729384774929,0.48469093,2645.7,2645.5,0.95183407]
[1729384775239,0.37799,2645.7,2645.5,0.95183407]
[1729384776844,0.378,2645.6,2645.5,0.95183407]
[1729384777531,0.4034,2645.8,2645.5,0.8299]
[1729384777744,0.378,2645.7,2645.5,0.8299]
[1729384778035,0.378,2645.7,2645.5,1.20791]
[1729384779831,0.378,2645.7,2645.5,0.8299]
[1729384782131,0.4034,2645.8,2645.5,1.2079]
[1729384782132,0.78138,2645.8,2645.5,1.2079]
[1729384782640,0.37799,2645.7,2645.5,0.65286104]
[1729384782936,0.88859033,2645.8,2645.5,0.27486104]
[1729384783149,0.88859033,2645.8,2645.6,0.378]
[1729384783150,1.26657033,2645.8,2645.6,0.378]
[1729384783330,1.26657033,2645.8,2645.6,0.24677102]
[1729384783532,0.37799,2645.7,2645.5,0.65287104]
[1729384784439,1.26657033,2645.8,2645.5,0.65287104]
[1729384784941,0.37799,2645.7,2645.5,0.65287104]
[1729384785130,1.26657033,2645.8,2645.6,0.378]
[1729384785325,0.88859033,2645.8,2645.7,0.37799]
[1729384785732,0.88859033,2645.8,2645.2,0.37806]
[1729384786036,0.37799,2645.7,2645.4,0.37802]
[1729384787332,0.37799,2645.7,2645.4,0.37803]
[1729384788034,0.48519033,2645.7,2645.4,0.37803]
[1729384788234,0.37801,2645.5,2645.3,0.80514]
[1729384788741,0.4022,2645.4,2645.3,0.80514]
[1729384789635,0.21274422,2645.5,2645.3,7.22693372]
[1729384789836,0.21274422,2645.5,2645.4,1.48179738]
[1729384790237,0.21274422,2645.5,2645.4,2.96785874]
[1729384791344,0.21274422,2645.5,2645.4,3.34588874]
[1729384791537,0.21274422,2645.5,2645.4,1.85982738]
[1729384791939,0.21274422,2645.5,2645.4,3.83622895]
[1729384792339,0.21274422,2645.5,2645.4,3.83383287]
[1729384793645,0.21274422,2645.5,2645.4,1.8574313]
[1729384794039,3.6045,2645.8,2645.4,1.4794013]
[1729384794346,0.37799,2645.7,2645.6,0.99059324]
[1729384795049,0.37799,2645.7,2645.6,2.46982561]
[1729384795443,0.37799,2645.7,2645.6,0.99059324]
[1729384795947,0.378,2645.6,2645.5,0.99059324]
[1729384796652,0.378,2645.6,2645.5,1.47920248]
[1729384796848,0.378,2645.6,2645.5,2.96509235]
[1729384797651,0.378,2645.6,2645.5,1.47920248]
[1729384797950,0.378,2645.6,2645.5,2.46973578]
[1729384798448,0.378,2645.6,2645.5,0.9905333]
[1729384799146,0.378,2645.6,2645.5,2.46975256]
[1729384799346,0.378,2645.6,2645.5,0.9905333]
[1729384800436,4.158,2645.6,2645.5,0.9905333]
[1729384800639,0.37801,2645.5,2645.4,0.9905333]
[1729384800845,4.84873611,2645.5,2645.4,0.9905333]
[1729384801049,0.37803,2645.4,2645.3,0.9905333]
[1729384801249,0.37804,2645.3,2645.2,0.9905333]
[1729384801448,0.85086611,2645.3,2645.2,2.46991411]
[1729384801747,0.85086611,2645.3,2645.2,0.9905333]
[1729384802345,0.85086611,2645.3,2645.2,2.46998404]
[1729384802957,0.85086611,2645.3,2645.2,0.9905333]
[1729384803549,0.85086611,2645.3,2645.2,2.47033402]
[1729384803860,0.85086611,2645.3,2645.2,0.9905333]
[1729384804550,0.47282611,2645.3,2645.0,0.79708]
[1729384804744,0.37806,2645.2,2645.0,0.79708]
[1729384805347,0.47282611,2645.3,2645.1,0.37807]
[1729384805348,0.85087611,2645.3,2645.1,0.37807]
[1729384805749,0.37805,2645.3,2645.1,0.37807]
[1729384805951,0.37806,2645.2,2645.1,0.37807]
[1729384806156,0.37806,2645.2,2645.0,0.419]
[1729384806358,0.37806,2645.2,2645.0,0.79708]
[1729384807057,4.4031,2645.4,2644.9,0.9905333]
[1729384807250,0.37809,2645.0,2644.9,0.37809]
[1729384807451,0.8156,2645.1,2644.9,0.37809]
[1729384807764,0.4259,2645.0,2644.9,0.37809]
[1729384808456,0.80399,2645.0,2644.8,1.3686333]
[1729384809160,0.4259,2645.0,2644.9,0.3781]
[1729384811756,0.4259,2645.0,2644.9,7.27982504]
[1729384813362,0.8156,2645.1,2644.9,6.90172504]
[1729384813564,0.8156,2645.1,2645.0,4.81789948]